[Event "*** SCC Grand Prix: Titled Tuesday Blitz"]
[Site "Chess.com"]
[Date "2020.10.13"]
[Round "8"]
[White "Forantes"]
[Black "TheMagnet"]
[Result "0-1"]
[WhiteElo "2436"]
[BlackElo "2595"]
[TimeControl "180+1"]
[EndTime "11:35:34 PDT"]
[Termination "TheMagnet won by resignation"]

1. Nf3 {[%clk 0:03:00.9]} 1... Nf6 {[%clk 0:02:59.9]} 2. g3 {[%clk 0:03:01.2]}
2... g6 {[%clk 0:02:59.7]} 3. Bg2 {[%clk 0:03:01.6]} 3... Bg7 {[%clk 0:03:00.6]}
4. O-O {[%clk 0:03:02.2]} 4... O-O {[%clk 0:03:01.1]} 5. d4 {[%clk 0:03:03]}
5... d6 {[%clk 0:02:57.1]} 6. c4 {[%clk 0:03:03.1]} 6... Nc6 {[%clk 0:02:53.3]}
7. Nc3 {[%clk 0:03:03]} 7... a6 {[%clk 0:02:53.6]} 8. Re1 {[%clk 0:03:02.8]}
8... Rb8 {[%clk 0:02:53.3]} 9. e4 {[%clk 0:03:00.9]} 9... b5 {[%clk 0:02:51]}
10. b3 {[%clk 0:03:01]} 10... Bg4 {[%clk 0:02:47.4]} 11. Be3 {[%clk 0:02:59.2]}
11... Nd7 {[%clk 0:02:38.4]} 12. h3 {[%clk 0:02:50.4]} 12... Bxf3 {[%clk
0:02:38.5]} 13. Bxf3 {[%clk 0:02:51.3]} 13... bxc4 {[%clk 0:02:28.3]} 14. bxc4
{[%clk 0:02:51.2]} 14... e5 {[%clk 0:02:27.8]} 15. d5 {[%clk 0:02:35.6]} 15...
Nd4 {[%clk 0:02:27.7]} 16. Bg2 {[%clk 0:02:25.4]} 16... f5 {[%clk 0:02:20.5]}
17. exf5 {[%clk 0:02:22.8]} 17... Nxf5 {[%clk 0:02:16.4]} 18. Ne4 {[%clk
0:02:15.9]} 18... Nxe3 {[%clk 0:02:12.3]} 19. Rxe3 {[%clk 0:02:16.8]} 19... Bh6
{[%clk 0:02:09.8]} 20. Ra3 {[%clk 0:02:08.2]} 20... Nf6 {[%clk 0:01:59.8]} 21.
Qc2 {[%clk 0:01:43.4]} 21... Nxe4 {[%clk 0:01:55.3]} 22. Bxe4 {[%clk 0:01:43]}
22... Qc8 {[%clk 0:01:48.1]} 23. Kg2 {[%clk 0:01:42.4]} 23... Qb7 {[%clk
0:01:44.1]} 24. c5 {[%clk 0:00:53.5]} 24... Qb2 {[%clk 0:01:27.7]} 25. Qxb2
{[%clk 0:00:41.2]} 25... Rxb2 {[%clk 0:01:28.6]} 26. Rf1 {[%clk 0:00:40.2]}
26... dxc5 {[%clk 0:01:26.3]} 27. Rxa6 {[%clk 0:00:39.8]} 27... Be3 {[%clk
0:01:26]} 28. Bf3 {[%clk 0:00:32.6]} 28... e4 {[%clk 0:01:24.4]} 29. Bxe4 {[%clk
0:00:29.4]} 29... Rbxf2+ {[%clk 0:01:23.8]} 30. Rxf2 {[%clk 0:00:28.5]} 30...
Rxf2+ {[%clk 0:01:24.7]} 31. Kh1 {[%clk 0:00:28.7]} 31... Rf1+ {[%clk
0:01:10.1]} 32. Kg2 {[%clk 0:00:28.1]} 32... Rf2+ {[%clk 0:01:11]} 33. Kh1
{[%clk 0:00:28.1]} 33... Re2 {[%clk 0:00:45.6]} 34. Re6 {[%clk 0:00:08.9]} 34...
Re1+ {[%clk 0:00:36.9]} 35. Kg2 {[%clk 0:00:08.8]} 35... Kf8 {[%clk 0:00:35.6]}
36. Kf3 {[%clk 0:00:08.1]} 36... Bd4 {[%clk 0:00:34.3]} 37. Kg4 {[%clk
0:00:06.9]} 37... Ra1 {[%clk 0:00:31.2]} 38. Rc6 {[%clk 0:00:06.5]} 38... Rxa2
{[%clk 0:00:30.2]} 39. Rxc7 {[%clk 0:00:06.7]} 39... Re2 {[%clk 0:00:27.3]} 40.
Bf3 {[%clk 0:00:05.7]} 40... h5+ {[%clk 0:00:26]} 41. Kg5 {[%clk 0:00:05.5]}
41... Re3 {[%clk 0:00:26.5]} 42. d6 {[%clk 0:00:02]} 42... Ke8 {[%clk
0:00:18.6]} 43. Bc6+ {[%clk 0:00:01.6]} 43... Kd8 {[%clk 0:00:18.2]} 44. Rd7+
{[%clk 0:00:01.7]} 44... Kc8 {[%clk 0:00:18.3]} 45. Rf7 {[%clk 0:00:01.7]} 45...
Rxg3+ {[%clk 0:00:15.2]} 46. Kh6 {[%clk 0:00:02.4]} 46... Kb8 {[%clk 0:00:14.6]}
47. Rf8+ {[%clk 0:00:02.9]} 47... Ka7 {[%clk 0:00:14.9]} 48. d7 {[%clk
0:00:03.8]} 48... Be3+ {[%clk 0:00:15]} 49. Kh7 {[%clk 0:00:03.4]} 49... Bg5
{[%clk 0:00:15.3]} 50. d8=Q {[%clk 0:00:03.8]} 50... Bxd8 {[%clk 0:00:15.2]} 51.
Rxd8 {[%clk 0:00:04.7]} 51... Kb6 {[%clk 0:00:16]} 52. Be8 {[%clk 0:00:04.3]}
52... Rxh3 {[%clk 0:00:15.4]} 53. Bxg6 {[%clk 0:00:04.3]} 53... Rh4 {[%clk
0:00:15.1]} 54. Rd5 {[%clk 0:00:04.5]} 54... Kb5 {[%clk 0:00:14]} 55. Kh6 {[%clk
0:00:03.3]} 55... Kb4 {[%clk 0:00:14.1]} 56. Kg5 {[%clk 0:00:02.9]} 56... Rh1
{[%clk 0:00:13.2]} 57. Bxh5 {[%clk 0:00:03.1]} 57... Rg1+ {[%clk 0:00:13.5]} 58.
Kf4 {[%clk 0:00:02.6]} 58... c4 {[%clk 0:00:13.9]} 59. Ke3 {[%clk 0:00:03]}
59... Kc3 {[%clk 0:00:14.1]} 60. Be2 {[%clk 0:00:03.2]} 60... Rg7 {[%clk
0:00:13.7]} 61. Rc5 {[%clk 0:00:03.1]} 61... Re7+ {[%clk 0:00:14]} 62. Kf2
{[%clk 0:00:03.7]} 62... Kb3 {[%clk 0:00:13.1]} 63. Bxc4+ {[%clk 0:00:02.7]}
63... Kb4 {[%clk 0:00:13.5]} 64. Rc8 {[%clk 0:00:03.3]} 64... Re4 {[%clk
0:00:13.3]} 65. Be2 {[%clk 0:00:03.6]} 65... Rf4+ {[%clk 0:00:13.5]} 66. Bf3
{[%clk 0:00:04]} 66... Rd4 {[%clk 0:00:13.6]} 67. Ke3 {[%clk 0:00:04.5]} 67...
Rd6 {[%clk 0:00:13.9]} 68. Rb8+ {[%clk 0:00:04.9]} 68... Kc5 {[%clk 0:00:13.8]}
69. Be4 {[%clk 0:00:05.4]} 69... Rb6 {[%clk 0:00:13.8]} 70. Kf4 {[%clk
0:00:05.2]} 70... Rxb8 {[%clk 0:00:13.7]} 71. Bg6 {[%clk 0:00:05.3]} 71... Kd6
{[%clk 0:00:13.6]} 72. Kg5 {[%clk 0:00:06]} 72... Rb4 {[%clk 0:00:14.4]} 73. Kh6
{[%clk 0:00:06.6]} 73... Ke7 {[%clk 0:00:14.4]} 74. Kg7 {[%clk 0:00:06.7]} 74...
Rb8 {[%clk 0:00:15.3]} 75. Kh7 {[%clk 0:00:06.8]} 75... Kf6 {[%clk 0:00:14.9]}
76. Kh6 {[%clk 0:00:05.9]} 76... Rg8 {[%clk 0:00:13.5]} 77. Bh7 {[%clk
0:00:04.7]} 77... Rh8 {[%clk 0:00:13.7]} 78. Kh5 {[%clk 0:00:04.8]} 78... Rxh7+
{[%clk 0:00:11.1]} 79. Kg4 {[%clk 0:00:05.7]} 79... Rg7+ {[%clk 0:00:11.8]} 0-1

[Event "*** SCC Grand Prix: Titled Tuesday Blitz"]
[Site "Chess.com"]
[Date "2020.10.13"]
[Round "8"]
[White "Chessalary"]
[Black "crazy_but_lazy"]
[Result "1/2-1/2"]
[WhiteElo "2302"]
[BlackElo "2494"]
[TimeControl "180+1"]
[EndTime "11:36:59 PDT"]
[Termination "Game drawn - insufficient material"]

1. d4 {[%clk 0:03:00.9]} 1... Nf6 {[%clk 0:02:57.7]} 2. c4 {[%clk 0:03:01.1]}
2... e6 {[%clk 0:02:58.1]} 3. Nc3 {[%clk 0:03:01]} 3... Bb4 {[%clk 0:02:56.2]}
4. e3 {[%clk 0:03:00.7]} 4... O-O {[%clk 0:02:52.8]} 5. Ne2 {[%clk 0:03:00.4]}
5... Re8 {[%clk 0:02:51.5]} 6. a3 {[%clk 0:02:59.6]} 6... Bf8 {[%clk 0:02:50.2]}
7. g3 {[%clk 0:02:59.1]} 7... d5 {[%clk 0:02:36.5]} 8. cxd5 {[%clk 0:02:56.4]}
8... exd5 {[%clk 0:02:35.2]} 9. Bg2 {[%clk 0:02:57.3]} 9... c6 {[%clk
0:02:30.1]} 10. O-O {[%clk 0:02:57.3]} 10... Bf5 {[%clk 0:02:27]} 11. b4 {[%clk
0:02:55.6]} 11... Qd7 {[%clk 0:02:03.1]} 12. Bb2 {[%clk 0:02:49.7]} 12... Bh3
{[%clk 0:02:02.2]} 13. Qc2 {[%clk 0:02:39.4]} 13... Bxg2 {[%clk 0:01:51.8]} 14.
Kxg2 {[%clk 0:02:40.3]} 14... a5 {[%clk 0:01:46.7]} 15. Na4 {[%clk 0:02:37.3]}
15... Qg4 {[%clk 0:01:37.9]} 16. h3 {[%clk 0:02:33.6]} 16... Qe4+ {[%clk
0:01:29.1]} 17. Qxe4 {[%clk 0:02:28.9]} 17... Nxe4 {[%clk 0:01:29.5]} 18. Nac3
{[%clk 0:02:11.9]} 18... axb4 {[%clk 0:01:25.7]} 19. axb4 {[%clk 0:02:10.4]}
19... Rxa1 {[%clk 0:01:24.3]} 20. Rxa1 {[%clk 0:02:11.3]} 20... Bxb4 {[%clk
0:01:17.9]} 21. Nxe4 {[%clk 0:02:09.5]} 21... Rxe4 {[%clk 0:01:16.4]} 22. Nc3
{[%clk 0:01:56.3]} 22... Bxc3 {[%clk 0:01:11.7]} 23. Bxc3 {[%clk 0:01:57.2]}
23... Na6 {[%clk 0:01:12.2]} 24. Bb4 {[%clk 0:01:45.2]} 24... f6 {[%clk
0:00:58.7]} 25. Ba5 {[%clk 0:01:39.4]} 25... Kf7 {[%clk 0:00:55.5]} 26. Rb1
{[%clk 0:01:39]} 26... Re7 {[%clk 0:00:55.4]} 27. Bd8 {[%clk 0:01:36.6]} 27...
Rd7 {[%clk 0:00:55.5]} 28. Bb6 {[%clk 0:01:36.1]} 28... h5 {[%clk 0:00:51.6]}
29. Kf3 {[%clk 0:01:35.7]} 29... Ke6 {[%clk 0:00:50.8]} 30. g4 {[%clk
0:01:24.9]} 30... hxg4+ {[%clk 0:00:49.8]} 31. hxg4 {[%clk 0:01:25.7]} 31... Rf7
{[%clk 0:00:49.3]} 32. Kg3 {[%clk 0:01:24.7]} 32... Nb8 {[%clk 0:00:43.7]} 33.
f4 {[%clk 0:01:23]} 33... g6 {[%clk 0:00:42.9]} 34. Kf3 {[%clk 0:01:02.5]} 34...
Nd7 {[%clk 0:00:38.8]} 35. Kg3 {[%clk 0:01:00.9]} 35... Nxb6 {[%clk 0:00:37.8]}
36. Rxb6 {[%clk 0:01:01.8]} 36... Kd6 {[%clk 0:00:37.8]} 37. Kf3 {[%clk
0:00:48.6]} 37... f5 {[%clk 0:00:36.4]} 38. gxf5 {[%clk 0:00:46.2]} 38... gxf5
{[%clk 0:00:34.6]} 39. Ke2 {[%clk 0:00:47.1]} 39... Rh7 {[%clk 0:00:22.8]} 40.
Kd3 {[%clk 0:00:46.7]} 40... Kc7 {[%clk 0:00:20.8]} 41. Rb1 {[%clk 0:00:46.9]}
41... b5 {[%clk 0:00:20]} 42. Rg1 {[%clk 0:00:46.3]} 42... Kb6 {[%clk
0:00:15.8]} 43. Rg5 {[%clk 0:00:42.2]} 43... Rf7 {[%clk 0:00:16.2]} 44. Kc3
{[%clk 0:00:40.7]} 44... Ka5 {[%clk 0:00:13.8]} 45. Rg6 {[%clk 0:00:39.6]} 45...
b4+ {[%clk 0:00:12.9]} 46. Kd3 {[%clk 0:00:35.2]} 46... Kb5 {[%clk 0:00:13.7]}
47. Rg8 {[%clk 0:00:31.1]} 47... Rb7 {[%clk 0:00:11.8]} 48. Rf8 {[%clk
0:00:26.6]} 48... Ka4 {[%clk 0:00:06.9]} 49. Kc2 {[%clk 0:00:25.6]} 49... b3+
{[%clk 0:00:03.9]} 50. Kb2 {[%clk 0:00:24.9]} 50... Kb4 {[%clk 0:00:04.2]} 51.
Rxf5 {[%clk 0:00:22.7]} 51... Rh7 {[%clk 0:00:04.2]} 52. Rg5 {[%clk 0:00:15.1]}
52... Rh2+ {[%clk 0:00:05.1]} 53. Kb1 {[%clk 0:00:14.6]} 53... Kc3 {[%clk
0:00:05.7]} 54. Rg1 {[%clk 0:00:14.6]} 54... Re2 {[%clk 0:00:05.7]} 55. Rc1+
{[%clk 0:00:09.9]} 55... Kd3 {[%clk 0:00:04.8]} 56. Rxc6 {[%clk 0:00:10.7]}
56... Rxe3 {[%clk 0:00:04.2]} 57. f5 {[%clk 0:00:10.8]} 57... Rf3 {[%clk
0:00:03.9]} 58. f6 {[%clk 0:00:11.3]} 58... Kxd4 {[%clk 0:00:04.2]} 59. Kb2
{[%clk 0:00:11.9]} 59... Ke5 {[%clk 0:00:04.7]} 60. Rb6 {[%clk 0:00:10.4]} 60...
Rxf6 {[%clk 0:00:05]} 61. Rxb3 {[%clk 0:00:09.1]} 61... Rc6 {[%clk 0:00:04.4]}
62. Rh3 {[%clk 0:00:05.8]} 62... Rc8 {[%clk 0:00:03.7]} 63. Rh5+ {[%clk
0:00:04.9]} 63... Kd4 {[%clk 0:00:04.1]} 64. Rh4+ {[%clk 0:00:05.8]} 64... Kc5
{[%clk 0:00:04.2]} 65. Rh3 {[%clk 0:00:06.7]} 65... Re8 {[%clk 0:00:02.7]} 66.
Kc3 {[%clk 0:00:06.7]} 66... d4+ {[%clk 0:00:03.1]} 67. Kd3 {[%clk 0:00:07.1]}
67... Re5 {[%clk 0:00:03.8]} 68. Rf3 {[%clk 0:00:05.7]} 68... Rh5 {[%clk
0:00:04.1]} 69. Rg3 {[%clk 0:00:05.8]} 69... Kd5 {[%clk 0:00:04.7]} 70. Rf3
{[%clk 0:00:05.7]} 70... Rg5 {[%clk 0:00:05.2]} 71. Rh3 {[%clk 0:00:05.5]} 71...
Re5 {[%clk 0:00:05.7]} 72. Rf3 {[%clk 0:00:05.7]} 72... Re8 {[%clk 0:00:04.8]}
73. Rf5+ {[%clk 0:00:05.5]} 73... Ke6 {[%clk 0:00:05.3]} 74. Rc5 {[%clk
0:00:04.6]} 74... Rd8 {[%clk 0:00:05.2]} 75. Rc4 {[%clk 0:00:04.3]} 75... Ke5
{[%clk 0:00:05.7]} 76. Ra4 {[%clk 0:00:04.9]} 76... Rd5 {[%clk 0:00:06]} 77. Rb4
{[%clk 0:00:04.9]} 77... Ra5 {[%clk 0:00:06.5]} 78. Rb3 {[%clk 0:00:04]} 78...
Ra4 {[%clk 0:00:06.8]} 79. Rb5+ {[%clk 0:00:03.8]} 79... Kf4 {[%clk 0:00:07.4]}
80. Rd5 {[%clk 0:00:02.9]} 80... Kf3 {[%clk 0:00:07]} 81. Rxd4 {[%clk 0:00:03]}
81... Ra3+ {[%clk 0:00:07.9]} 82. Kc4 {[%clk 0:00:02.8]} 82... Ra8 {[%clk
0:00:08.8]} 83. Rd3+ {[%clk 0:00:02.7]} 83... Ke4 {[%clk 0:00:09.4]} 84. Rd7
{[%clk 0:00:03.4]} 84... Ke5 {[%clk 0:00:10.2]} 85. Kb5 {[%clk 0:00:03.8]} 85...
Rb8+ {[%clk 0:00:09.8]} 86. Kc6 {[%clk 0:00:03.8]} 86... Rb1 {[%clk 0:00:10.7]}
87. Kc7 {[%clk 0:00:03.2]} 87... Ke6 {[%clk 0:00:11.2]} 88. Rd2 {[%clk
0:00:03.2]} 88... Rc1+ {[%clk 0:00:11.2]} 89. Kb6 {[%clk 0:00:03.2]} 89... Ke5
{[%clk 0:00:11.6]} 90. Kb5 {[%clk 0:00:03.3]} 90... Ke4 {[%clk 0:00:11.5]} 91.
Kb4 {[%clk 0:00:03.8]} 91... Rc8 {[%clk 0:00:12]} 92. Rd6 {[%clk 0:00:03.9]}
92... Rb8+ {[%clk 0:00:12]} 93. Kc5 {[%clk 0:00:03.8]} 93... Ke5 {[%clk
0:00:12.3]} 94. Rb6 {[%clk 0:00:04.5]} 94... Rc8+ {[%clk 0:00:11]} 95. Rc6
{[%clk 0:00:04.9]} 95... Ra8 {[%clk 0:00:11.7]} 96. Rb6 {[%clk 0:00:05.4]} 96...
Ra1 {[%clk 0:00:12]} 97. Rb5 {[%clk 0:00:05.6]} 97... Rc1+ {[%clk 0:00:12.1]}
98. Kb6+ {[%clk 0:00:06]} 98... Kd4 {[%clk 0:00:13]} 99. Rb4+ {[%clk 0:00:06.2]}
99... Kd5 {[%clk 0:00:13.5]} 100. Rb5+ {[%clk 0:00:06.5]} 100... Kd6 {[%clk
0:00:14.1]} 101. Rb3 {[%clk 0:00:07]} 101... Rc6+ {[%clk 0:00:14.2]} 102. Kb5
{[%clk 0:00:07.4]} 102... Rc1 {[%clk 0:00:14.7]} 103. Kb4 {[%clk 0:00:07.8]}
103... Kc6 {[%clk 0:00:14.7]} 104. Rc3+ {[%clk 0:00:08]} 104... Rxc3 {[%clk
0:00:15.2]} 105. Kxc3 {[%clk 0:00:08.9]} 1/2-1/2

[Event "*** SCC Grand Prix: Titled Tuesday Blitz"]
[Site "Chess.com"]
[Date "2020.10.13"]
[Round "9"]
[White "brunomorado"]
[Black "C_K_G"]
[Result "0-1"]
[WhiteElo "2292"]
[BlackElo "2066"]
[TimeControl "180+1"]
[EndTime "11:40:17 PDT"]
[Termination "C_K_G won by resignation"]

1. d4 {[%clk 0:03:00]} 1... d5 {[%clk 0:02:56]} 2. Nc3 {[%clk 0:02:59.6]} 2...
c6 {[%clk 0:02:54.8]} 3. e4 {[%clk 0:02:59.7]} 3... dxe4 {[%clk 0:02:53.3]} 4.
Nxe4 {[%clk 0:03:00.6]} 4... Bf5 {[%clk 0:02:51.7]} 5. Ng5 {[%clk 0:03:01]} 5...
Nf6 {[%clk 0:02:39]} 6. Bc4 {[%clk 0:03:00.7]} 6... e6 {[%clk 0:02:35]} 7. N1f3
{[%clk 0:03:00.2]} 7... Bd6 {[%clk 0:02:30.3]} 8. Qe2 {[%clk 0:02:59.1]} 8...
O-O {[%clk 0:02:26.4]} 9. Ne5 {[%clk 0:02:58.1]} 9... Nbd7 {[%clk 0:02:21.8]}
10. Nexf7 {[%clk 0:02:26.7]} 10... Rxf7 {[%clk 0:02:14.7]} 11. Bxe6 {[%clk
0:02:26.9]} 11... Bxe6 {[%clk 0:02:11.6]} 12. Qxe6 {[%clk 0:02:27.8]} 12... Qe7
{[%clk 0:02:08.7]} 13. Be3 {[%clk 0:02:06.8]} 13... Qxe6 {[%clk 0:02:01.6]} 14.
Nxe6 {[%clk 0:02:07.7]} 14... Re7 {[%clk 0:02:02.3]} 0-1

[Event "*** SCC Grand Prix: Titled Tuesday Blitz"]
[Site "Chess.com"]
[Date "2020.10.13"]
[Round "9"]
[White "Beca95"]
[Black "GiantThresher"]
[Result "1-0"]
[WhiteElo "2934"]
[BlackElo "2860"]
[TimeControl "180+1"]
[EndTime "11:40:34 PDT"]
[Termination "Beca95 won by resignation"]

1. d4 {[%clk 0:03:00.9]} 1... d5 {[%clk 0:02:59.3]} 2. c4 {[%clk 0:03:00.9]}
2... e6 {[%clk 0:02:59.5]} 3. Nf3 {[%clk 0:03:01.5]} 3... c5 {[%clk 0:02:59.3]}
4. cxd5 {[%clk 0:03:00.5]} 4... exd5 {[%clk 0:03:00.2]} 5. dxc5 {[%clk 0:03:01]}
5... Nc6 {[%clk 0:02:58]} 6. Nc3 {[%clk 0:03:00.3]} 6... Nf6 {[%clk 0:02:58.1]}
7. Bg5 {[%clk 0:02:55.2]} 7... Bxc5 {[%clk 0:02:57.6]} 8. Bxf6 {[%clk
0:02:55.2]} 8... Qxf6 {[%clk 0:02:57.2]} 9. Qxd5 {[%clk 0:02:53.6]} 9... Bb4
{[%clk 0:02:55.8]} 10. Qb3 {[%clk 0:02:51]} 10... Be6 {[%clk 0:02:53]} 11. Qc2
{[%clk 0:02:49.2]} 11... Rc8 {[%clk 0:02:50.3]} 12. a3 {[%clk 0:02:47.4]} 12...
Bxc3+ {[%clk 0:02:27.5]} 13. Qxc3 {[%clk 0:02:47.5]} 13... Qxc3+ {[%clk
0:02:27.3]} 14. bxc3 {[%clk 0:02:48.4]} 14... Na5 {[%clk 0:02:28]} 15. Nd4
{[%clk 0:02:47.6]} 15... Rxc3 {[%clk 0:02:17.2]} 16. e3 {[%clk 0:02:46.2]} 16...
Ke7 {[%clk 0:02:14.1]} 17. Be2 {[%clk 0:02:45.6]} 17... Rhc8 {[%clk 0:02:13.3]}
18. O-O {[%clk 0:02:44.9]} 18... Bc4 {[%clk 0:02:11.7]} 19. Bxc4 {[%clk
0:02:43.8]} 19... R8xc4 {[%clk 0:02:12.6]} 20. a4 {[%clk 0:02:42.9]} 20... Nc6
{[%clk 0:01:57]} 21. Nb5 {[%clk 0:02:40.9]} 21... Rc2 {[%clk 0:01:55.7]} 22. Na3
{[%clk 0:02:40.9]} 22... R2c3 {[%clk 0:01:49.9]} 23. Nxc4 {[%clk 0:02:40.7]}
23... Rxc4 {[%clk 0:01:50.8]} 24. Rfc1 {[%clk 0:02:40.8]} 24... Rxc1+ {[%clk
0:01:44.7]} 25. Rxc1 {[%clk 0:02:40]} 25... Kd6 {[%clk 0:01:45.6]} 26. f3 {[%clk
0:02:38.9]} 26... a6 {[%clk 0:01:44.7]} 27. Kf2 {[%clk 0:02:38.2]} 27... b5
{[%clk 0:01:44.9]} 28. axb5 {[%clk 0:02:37.9]} 28... axb5 {[%clk 0:01:45.8]} 29.
e4 {[%clk 0:02:38]} 29... b4 {[%clk 0:01:45.8]} 30. Ke3 {[%clk 0:02:38.1]} 30...
b3 {[%clk 0:01:44.7]} 31. Rb1 {[%clk 0:02:29.9]} 31... Na5 {[%clk 0:01:44.6]}
32. Kd4 {[%clk 0:02:30.2]} 32... Kc6 {[%clk 0:01:44.6]} 33. Kc3 {[%clk
0:02:29.9]} 33... Kc5 {[%clk 0:01:44.1]} 34. Rd1 {[%clk 0:02:28.9]} 34... Kc6
{[%clk 0:01:44.3]} 35. Rd5 {[%clk 0:02:28.2]} 1-0

[Event "*** SCC Grand Prix: Titled Tuesday Blitz"]
[Site "Chess.com"]
[Date "2020.10.13"]
[Round "9"]
[White "Trickov"]
[Black "pfalcon1949"]
[Result "1-0"]
[WhiteElo "2360"]
[BlackElo "1938"]
[TimeControl "180+1"]
[EndTime "11:40:38 PDT"]
[Termination "Trickov won by resignation"]

1. d4 {[%clk 0:02:55]} 1... Nf6 {[%clk 0:02:58.4]} 2. Nf3 {[%clk 0:02:51.2]}
2... e6 {[%clk 0:02:58.6]} 3. g3 {[%clk 0:02:39.3]} 3... d5 {[%clk 0:02:56.1]}
4. Bg2 {[%clk 0:02:38.7]} 4... b6 {[%clk 0:02:56.7]} 5. O-O {[%clk 0:02:38.2]}
5... Bb7 {[%clk 0:02:57.3]} 6. c4 {[%clk 0:02:38.3]} 6... c6 {[%clk 0:02:56.8]}
7. Nc3 {[%clk 0:02:37.9]} 7... Be7 {[%clk 0:02:51.4]} 8. b3 {[%clk 0:02:37.6]}
8... O-O {[%clk 0:02:50.3]} 9. Qc2 {[%clk 0:02:37.8]} 9... Na6 {[%clk
0:02:48.1]} 10. Rd1 {[%clk 0:02:37.8]} 10... Rc8 {[%clk 0:02:47.2]} 11. e4
{[%clk 0:02:37.3]} 11... dxe4 {[%clk 0:02:44]} 12. Nxe4 {[%clk 0:02:36.7]} 12...
Nb4 {[%clk 0:02:42.1]} 13. Qb1 {[%clk 0:02:36.5]} 13... Nxe4 {[%clk 0:02:40.8]}
14. Qxe4 {[%clk 0:02:35.8]} 14... c5 {[%clk 0:02:41.4]} 15. Qxb7 {[%clk
0:02:31.4]} 15... Nc2 {[%clk 0:02:36.6]} 16. Rb1 {[%clk 0:02:24.9]} 16... Nxd4
{[%clk 0:02:36.8]} 17. Nxd4 {[%clk 0:02:21.8]} 17... cxd4 {[%clk 0:02:36]} 18.
Qxa7 {[%clk 0:02:01.5]} 18... Bc5 {[%clk 0:02:34]} 19. Qb7 {[%clk 0:01:58.7]}
19... Qf6 {[%clk 0:02:27]} 20. Qe4 {[%clk 0:01:55.3]} 20... Rfd8 {[%clk
0:02:20.4]} 21. Bb2 {[%clk 0:01:46.8]} 21... Rd7 {[%clk 0:02:13.4]} 22. b4
{[%clk 0:01:40.1]} 22... Bxb4 {[%clk 0:02:09]} 23. Bxd4 {[%clk 0:01:39.9]} 23...
Qg6 {[%clk 0:02:08]} 24. Qxg6 {[%clk 0:01:38.8]} 24... hxg6 {[%clk 0:02:08.9]}
25. Rxb4 {[%clk 0:01:33.4]} 1-0

[Event "*** SCC Grand Prix: Titled Tuesday Blitz"]
[Site "Chess.com"]
[Date "2020.10.13"]
[Round "9"]
[White "Ze-Pequeno"]
[Black "Region_07"]
[Result "0-1"]
[WhiteElo "2165"]
[BlackElo "2330"]
[TimeControl "180+1"]
[EndTime "11:40:54 PDT"]
[Termination "Region_07 won by resignation"]

1. e4 {[%clk 0:03:00.9]} 1... Nc6 {[%clk 0:02:56.6]} 2. Nf3 {[%clk 0:02:59.2]}
2... d6 {[%clk 0:02:56.8]} 3. d4 {[%clk 0:02:58.8]} 3... g6 {[%clk 0:02:55.5]}
4. d5 {[%clk 0:02:58.2]} 4... Nb8 {[%clk 0:02:55.7]} 5. h3 {[%clk 0:02:52.3]}
5... Bg7 {[%clk 0:02:55.3]} 6. Bd3 {[%clk 0:02:51.9]} 6... Nf6 {[%clk
0:02:54.3]} 7. O-O {[%clk 0:02:51.4]} 7... O-O {[%clk 0:02:54.6]} 8. Re1 {[%clk
0:02:49.4]} 8... Nbd7 {[%clk 0:02:54.3]} 9. c3 {[%clk 0:02:46.4]} 9... c6 {[%clk
0:02:54.4]} 10. dxc6 {[%clk 0:02:45.3]} 10... bxc6 {[%clk 0:02:54.3]} 11. Na3
{[%clk 0:02:43.9]} 11... Nc5 {[%clk 0:02:47.3]} 12. Bc2 {[%clk 0:02:43.2]} 12...
a5 {[%clk 0:02:43.5]} 13. e5 {[%clk 0:02:38]} 13... Nd5 {[%clk 0:02:40.9]} 14.
exd6 {[%clk 0:02:31.6]} 14... exd6 {[%clk 0:02:41.8]} 15. Bg5 {[%clk 0:02:28.4]}
15... Qc7 {[%clk 0:02:39.4]} 16. Qd2 {[%clk 0:02:25]} 16... Rb8 {[%clk
0:02:36.8]} 17. Rab1 {[%clk 0:02:23.7]} 17... Ba6 {[%clk 0:02:25.1]} 18. Bh6
{[%clk 0:02:07.2]} 18... Rfe8 {[%clk 0:02:24.5]} 19. Bxg7 {[%clk 0:02:05.3]}
19... Kxg7 {[%clk 0:02:23.6]} 20. b3 {[%clk 0:01:45.4]} 20... Ne6 {[%clk
0:02:14.7]} 21. Rbd1 {[%clk 0:01:37.9]} 21... Rbd8 {[%clk 0:02:12]} 22. Be4
{[%clk 0:01:31.7]} 22... Ndf4 {[%clk 0:02:07]} 23. Kh2 {[%clk 0:01:28.3]} 23...
d5 {[%clk 0:02:06.9]} 24. g3 {[%clk 0:01:22.1]} 0-1

[Event "*** SCC Grand Prix: Titled Tuesday Blitz"]
[Site "Chess.com"]
[Date "2020.10.13"]
[Round "9"]
[White "Samantha_Ross"]
[Black "Chamal_Gedgafov"]
[Result "1-0"]
[WhiteElo "2263"]
[BlackElo "2157"]
[TimeControl "180+1"]
[EndTime "11:41:41 PDT"]
[Termination "Samantha_Ross won by resignation"]

1. e4 {[%clk 0:02:59.7]} 1... e6 {[%clk 0:02:58.8]} 2. d4 {[%clk 0:02:59.6]}
2... d5 {[%clk 0:02:58.8]} 3. Nc3 {[%clk 0:03:00.5]} 3... Bb4 {[%clk 0:02:57.7]}
4. e5 {[%clk 0:02:55.7]} 4... c5 {[%clk 0:02:56.7]} 5. a3 {[%clk 0:02:56.2]}
5... Bxc3+ {[%clk 0:02:56.9]} 6. bxc3 {[%clk 0:02:57.1]} 6... Ne7 {[%clk
0:02:57.2]} 7. Qg4 {[%clk 0:02:57.4]} 7... Qc7 {[%clk 0:02:56.7]} 8. Qxg7 {[%clk
0:02:57.2]} 8... Rg8 {[%clk 0:02:56.6]} 9. Qxh7 {[%clk 0:02:57.7]} 9... cxd4
{[%clk 0:02:57.5]} 10. Ne2 {[%clk 0:02:57.4]} 10... Nbc6 {[%clk 0:02:58.4]} 11.
f4 {[%clk 0:02:57.4]} 11... dxc3 {[%clk 0:02:55.6]} 12. Qd3 {[%clk 0:02:55.7]}
12... d4 {[%clk 0:02:52.6]} 13. Nxd4 {[%clk 0:02:49.5]} 13... Nxd4 {[%clk
0:02:51.1]} 14. Qxd4 {[%clk 0:02:50.4]} 14... Nd5 {[%clk 0:02:51.3]} 15. Bb5+
{[%clk 0:02:47.7]} 15... Bd7 {[%clk 0:02:51.4]} 16. Bxd7+ {[%clk 0:02:47]} 16...
Qxd7 {[%clk 0:02:51.3]} 17. O-O {[%clk 0:02:42.4]} 17... Qc6 {[%clk 0:02:49.5]}
18. g3 {[%clk 0:02:37.3]} 18... b6 {[%clk 0:02:46.4]} 19. a4 {[%clk 0:02:34.4]}
19... a5 {[%clk 0:02:44]} 20. Ba3 {[%clk 0:02:33.6]} 20... O-O-O {[%clk
0:02:43.2]} 21. Rab1 {[%clk 0:02:26.9]} 21... Rg6 {[%clk 0:02:34]} 22. Bd6
{[%clk 0:02:24.4]} 22... Rh8 {[%clk 0:02:32.1]} 23. Qd3 {[%clk 0:02:12.2]} 23...
Kb7 {[%clk 0:02:30.5]} 24. Qb5 {[%clk 0:02:10.1]} 24... Qxb5 {[%clk 0:02:13.2]}
25. Rxb5 {[%clk 0:02:11]} 25... Kc6 {[%clk 0:02:07.6]} 26. Rf3 {[%clk 0:01:54]}
26... Rgh6 {[%clk 0:01:50.6]} 27. h4 {[%clk 0:01:52.7]} 27... Rg6 {[%clk
0:01:50.5]} 28. Kf2 {[%clk 0:01:50.9]} 28... f6 {[%clk 0:01:46.6]} 29. Rb3
{[%clk 0:01:38.2]} 29... fxe5 {[%clk 0:01:41.3]} 30. Bxe5 {[%clk 0:01:37.7]}
30... Nb4 {[%clk 0:01:30.5]} 31. Bxh8 {[%clk 0:01:36]} 1-0